Cogmind - Beta 12 @@@ ROGUE MODE // 2024.01.28 @ 14:16:11 Player: Root Result: Destroyed by G-34 Mercenary with Small Laser Performance ------------- Evolutions (0) 0 Regions Visited (4) 800 Robots Destroyed (11) 55 Value Destroyed (395) 395 Prototype IDs (0) 0 Alien Tech Used (0) 0 Bonus (300) 300 TOTAL SCORE: 1550 Bonus ------- Aligned with FarCom 300 Cogmind --------- Core Integrity 0/250 Matter 249/300 Energy 250/250 System Corruption 0% Temperature Warning (314) Movement Walking (190) Ox1 Location -9/Mines Parts ------- > --- POWER (1) -------- Ion Engine > --- PROPULSION (2) --- Aluminum Leg Aluminum Leg > --- UTILITY (2) ------ Large Storage Unit Propulsion Shielding > --- WEAPON (2) ------- Small Laser Particle Gun > --- INVENTORY (15) --- Improved Heat Sink Large Storage Unit Large Storage Unit Large Matter Pod (150) Terrain Scanner Improved Terrain Scanner AWS/Autocannon Mining Laser Heavy Explosive Trap Heavy Explosive Trap Heavy Explosive Trap Heavy Explosive Trap Heavy Explosive Trap Peak State ------------ > --- POWER ------------ Ion Engine > --- PROPULSION ------- Light Treads Aluminum Leg > --- UTILITY ---------- High-capacity Storage Unit Terrain Scanner > --- WEAPON ----------- Small Laser Particle Gun > --- INVENTORY -------- Aluminum Leg Heat Sink Improved Heat Sink Small Storage Unit Large Matter Pod Improved Terrain Scanner Propulsion Shielding AWS/Autocannon Mining Laser Heavy Explosive Trap Heavy Explosive Trap Heavy Explosive Trap Heavy Explosive Trap Heavy Explosive Trap [Rating: 12] Favorites ----------- Power Ion Engine Engine Ion Engine Propulsion Light Treads Treads Light Treads Leg Aluminum Leg Utility Terrain Scanner Device Terrain Scanner Storage Small Storage Unit Protection Propulsion Shielding Weapon Small Laser Energy Gun Small Laser Ballistic Gun Light Assault Rifle Special Weapon Mining Laser Build | -11 -10 -10 -10 -9 ------- Run | Jun Mat Min Exi Min Slots Evolved . | . . . . . Power . | . . . . . Propulsion . | . . . . . Utility . | . . . . . Weapon . | . . . . . Parts Attached 28 | 8 5 10 4 1 Power 4 | 2 1 1 . . Engine 4 | 2 1 1 . . Core . | . . . . . Reactor . | . . . . . Propulsion 6 | 2 . 1 3 . Treads 3 | 2 . . 1 . Leg 3 | . . 1 2 . Wheel . | . . . . . Hover . | . . . . . Flight . | . . . . . Utility 9 | 1 2 4 1 1 Device 2 | . . 2 . . Storage 4 | 1 1 1 1 . Processor . | . . . . . Hackware . | . . . . . Protection 3 | . 1 1 . 1 Artifact . | . . . . . Weapon 9 | 3 2 4 . . Energy Gun 5 | 1 1 3 . . Energy Cannon . | . . . . . Ballistic Gun 3 | 2 1 . . . Ballistic Cannon . | . . . . . Launcher . | . . . . . Special Weapon 1 | . . 1 . . Impact Weapon . | . . . . . Slashing Weapon . | . . . . . Piercing Weapon . | . . . . . Special Melee Weapon . | . . . . . Unidentified Prototypes . | . . . . . Parts Lost 6 | . 2 4 . . Power 1 | . . 1 . . Propulsion 1 | . . 1 . . Utility 1 | . . 1 . . Weapon 3 | . 2 1 . . Highest Loss Streak 2 | . 1 2 . . To Critical Strikes . | . . . . . Average Slot Usage (%) 98 | . 98 97 100 100 Engine 13 | . 14 13 14 14 Treads 18 | . 28 17 12 . Leg 9 | . . 9 15 28 Device 9 | . . 11 14 . Storage 14 | . 15 14 14 14 Protection 3 | . 11 1 . 14 Energy Gun 22 | . 10 25 28 28 Ballistic Gun 4 | . 18 1 . . Naked Turns . | . . . . . Heaviest Build 50 | 14 17 50 50 . Greatest Support 40 | 40 40 40 20 . Greatest Overweight (x) 2 | 2 . 2 2 . Average Overweight (x) . | . . . 1 . Largest Inventory Capacity 20 | 8 8 20 20 15 Average Capacity 13 | 7 8 10 19 15 Most Carried 16 | 2 8 13 16 15 Average Carried 9 | 1 5 8 14 15 Final Capacity 20 | 8 8 20 15 15 Final Carried 15 | 2 8 13 15 15 Class Distribution -------------------- 95% | Mutant 3% | Scavenger-Mutant Dominant Class ---------------- Mutant | -10/Materials Mutant | -10/Mines Mutant | -10/Exiles Scavenger-Skirmisher | -9/Mines Resources | -11 -10 -10 -10 -9 ----------- Run | Jun Mat Min Exi Min Matter Collected 669 | 91 239 339 . . Remotely . | . . . . . Salvage Created 520 | . 239 281 . . Parts 22 | . 12 10 . . Haulers Intercepted . | . . . . . Recyclers Shooed 1 | . . 1 . . Parts Field Recycled . | . . . . . Retrieved Matter . | . . . . . Parts Self-Destructed . | . . . . . Prevented . | . . . . . Kills | -11 -10 -10 -10 -9 ------- Run | Jun Mat Min Exi Min Combat Hostiles Destroyed 10 | . 6 4 . . Guns 10 | . 6 4 . . Classes Destroyed 2 | . 1 1 . . Recycler 1 | . . 1 . . Grunt 10 | . 6 4 . . Best Kill Streak 3 | . 2 3 . . Combat Bots Only 3 | . 2 3 . . Max Kills in Single Turn 1 | . 1 1 . . Gunslinging . | . . . . . Exploded . | . . . . . Melee . | . . . . . Uniques/NPCs Destroyed . | . . . . . Combat | -11 -10 -10 -10 -9 -------- Run | Jun Mat Min Exi Min Damage Taken 1224 | . 501 458 . 265 Core 258 | . 93 101 . 64 Absorbed by Shields . | . . . . . Redirected to Shielding 66 | . 35 15 . 16 Core Remaining (%) 100 | 100 . . . . Volleys Fired 62 | . 38 19 . 5 Largest 2 | . 2 2 . 2 Hottest 105 | . 60 105 . 105 Shots Fired 123 | . 76 37 . 10 Gun 122 | . 76 36 . 10 Cannon . | . . . . . Launcher . | . . . . . Special 1 | . . 1 . . Kinetic 64 | . 51 13 . . Thermal 44 | . 10 24 . 10 Explosive . | . . . . . Electromagnetic 15 | . 15 . . . Robot Hit Streak 18 | . 13 18 . 3 Robot Miss Streak 4 | . 4 3 . 2 Penetration Max . | . . . . . Secondary Targets 1 | . . 1 . . Max Gunslinging Chain 1 | . . 1 . . Shots Hit Robots 81 | . 50 26 . 5 Core Hits 34 | . 17 15 . 2 Critical Kills . | . . . . . Critical Parts Destroyed . | . . . . . Critical Strikes . | . . . . . Melee Attacks . | . . . . . Impact . | . . . . . Slashing . | . . . . . Piercing . | . . . . . Sneak Attacks . | . . . . . Combat Hostiles . | . . . . . Follow-up Attacks . | . . . . . Damage Inflicted 985 | . 569 285 . 131 Guns 980 | . 569 280 . 131 Cannons . | . . . . . Explosions . | . . . . . Melee . | . . . . . Ramming 5 | . . 5 . . Kinetic 460 | . 354 106 . . Thermal 396 | . 91 174 . 131 Explosive . | . . . . . Electromagnetic 124 | . 124 . . . Impact . | . . . . . Slashing . | . . . . . Piercing . | . . . . . Highest Corruption . | . . . . . Average Corruption . | . . . . . Corruption Purged . | . . . . . Corruption Blocked . | . . . . . Overload Shots . | . . . . . Overflow Damage . | . . . . . Projectiles . | . . . . . Explosions . | . . . . . Melee . | . . . . . Knockbacks . | . . . . . Impact . | . . . . . Kinetic . | . . . . . Secondary . | . . . . . Self-Inflicted Damage . | . . . . . Shots . | . . . . . Rammed 1 | . . 1 . . Targets Rammed 1 | . . 1 . . Kicked . | . . . . . Crushed . | . . . . . Highest Temperature 308 | . 96 131 . 308 Average Temperature 54 | . 35 52 . 156 Received Heat Transfer 624 | . 279 201 . 144 Siege Activations . | . . . . . Robots Corrupted . | . . . . . Combat Hostiles . | . . . . . Parts Fried 1 | . 1 . . . Impact Corruptions . | . . . . . Robots Melted . | . . . . . Combat Hostiles . | . . . . . Parts Melted . | . . . . . Heat Transferred 921 | . 200 411 . 310 Parts Sabotaged . | . . . . . Parts Stolen . | . . . . . Parts Stripped . | . . . . . Power Chain Reactions . | . . . . . Missiles Intercepted . | . . . . . Alert | -11 -10 -10 -10 -9 ------- Run | Jun Mat Min Exi Min Peak Influence 175 | . 175 116 . . Initial 5 | . . 5 . . Average 51 | . 62 49 . . Maximum Alert Level . | . . . . . Low Security (%) 100 | 100 100 100 . 100 Level 1 . | . . . . . Level 2 . | . . . . . Level 3 . | . . . . . Level 4 . | . . . . . Level 5 . | . . . . . High Security . | . . . . . Max Security . | . . . . . Squads Dispatched 3 | . 3 . . . Investigation 2 | . 2 . . . Extermination . | . . . . . Reinforcement 1 | . 1 . . . Assault . | . . . . . Garrison . | . . . . . Intercept . | . . . . . Searches Triggered . | . . . . . Construction Impeded . | . . . . . Haulers Reinforced . | . . . . . Active Scanning Responses . | . . . . . Cargo Convoy Interrupts . | . . . . . Stealth | -11 -10 -10 -10 -9 --------- Run | Jun Mat Min Exi Min Distress Signals 1 | . 1 . . . Communications Jammed . | . . . . . Distress Signals . | . . . . . Times Spotted 27 | . 14 10 . 3 Peak Tracking Total 8 | . 4 8 . 3 Tactical Retreats 1 | . . 1 . . Traps | -11 -10 -10 -10 -9 ------- Run | Jun Mat Min Exi Min Traps Triggered 2 | . 2 . . . Indirectly . | . . . . . Trap Hack Attempts . | . . . . . Triggered . | . . . . . Disarmed . | . . . . . Reprogrammed . | . . . . . Reused . | . . . . . Traps Extracted . | . . . . . Installed . | . . . . . Triggered . | . . . . . Most Traps Carried 5 | . . 5 5 5 Machines | -11 -10 -10 -10 -9 ---------- Run | Jun Mat Min Exi Min Machines Disabled 1 | . 1 . . . Max in Single Turn 1 | . 1 . . . Machines Repaired . | . . . . . Machines Sabotaged . | . . . . . Overloaded Fab Kills . | . . . . . Hacking | -11 -10 -10 -10 -9 --------- Run | Jun Mat Min Exi Min Machines Accessed 1 | . . 1 . . Terminals 1 | . . 1 . . Fabricators . | . . . . . Repair Stations . | . . . . . Recycling Units . | . . . . . Scanalyzers . | . . . . . Garrison Access . | . . . . . Total Hacks 5 | . . 5 . . Successful 1 | . . 1 . . Failed 4 | . . 4 . . Catastrophic 1 | . . 1 . . Database Lockouts . | . . . . . Manual 1 | . . . 1 . Terminals 5 | . . 5 . . Fabricators . | . . . . . Repair Stations . | . . . . . Recycling Units . | . . . . . Scanalyzers . | . . . . . Garrison Access . | . . . . . Terminal Hacks 1 | . . 1 . . Record 1 | . . 1 . . Fabricator Hacks . | . . . . . Repair Station Hacks . | . . . . . Recycling Unit Hacks . | . . . . . Scanalyzer . | . . . . . Garrison Access Hacks . | . . . . . Unauthorized Hacks . | . . . . . Terminals . | . . . . . Fabricators . | . . . . . Repair Stations . | . . . . . Recycling Units . | . . . . . Scanalyzers . | . . . . . Garrison Access . | . . . . . Data Cores Recovered . | . . . . . Used . | . . . . . Hacking Detections 1 | . . 1 . . Full Trace Events . | . . . . . Feedback Events . | . . . . . Feedback Blocked . | . . . . . Robot Schematics Acquired . | . . . . . Robots Built . | . . . . . Authchips . | . . . . . Time . | . . . . . Total Robot Build Rating . | . . . . . Part Schematics Acquired . | . . . . . Parts Built . | . . . . . Authchips . | . . . . . Time . | . . . . . Total Part Build Rating . | . . . . . Parts Repaired . | . . . . . Time . | . . . . . Parts Recycled . | . . . . . Recycled Matter . | . . . . . Retrieved Matter . | . . . . . Retrieved Components . | . . . . . Parts Scanalyzed . | . . . . . Part Schematics Acquired . | . . . . . Parts Damaged . | . . . . . Bothacking | -11 -10 -10 -10 -9 ------------ Run | Jun Mat Min Exi Min Used RIF Installer . | . . . . . Robots Hacked . | . . . . . Non-combat . | . . . . . Combat . | . . . . . Robot Hacks Applied . | . . . . . Relay Couplers Released . | . . . . . Fabnet Peak Effective % . | . . . . . Robots Rewired . | . . . . . Allies Hacked . | . . . . . Hacks Repelled . | . . . . . Allies | -11 -10 -10 -10 -9 -------- Run | Jun Mat Min Exi Min Total Allies . | . . . . . Largest Group . | . . . . . Highest-Rated Group . | . . . . . Highest-Rated Ally . | . . . . . Total Orders . | . . . . . Ally Attacks . | . . . . . Total Damage . | . . . . . Kills . | . . . . . Allies Corrupted . | . . . . . Allies Melted . | . . . . . Intel | -11 -10 -10 -10 -9 ------- Run | Jun Mat Min Exi Min Robot Analysis Total . | . . . . . Derelict Logs Recovered . | . . . . . Drone Launches . | . . . . . Drone Recoveries . | . . . . . Exploration | -11 -10 -10 -10 -9 ------------- Run | Jun Mat Min Exi Min Turns Passed 2056 | 65 485 709 781 16 Spaces Moved 839 | 34 217 335 253 . Core 4 | 4 . . . . Treads 788 | 30 217 321 220 . Legs 47 | . . 14 33 . Wheels . | . . . . . Hover . | . . . . . Flight . | . . . . . Fastest Speed 50 | 50 160 160 190 . Average Speed 212 | 154 160 183 303 . Slowest Speed 320 | 160 160 320 320 . Overloaded Moves . | . . . . . Propulsion Burnouts . | . . . . . Robots Hopped . | . . . . . Cave-ins Triggered . | . . . . . Exploration Rate (%) 32 | 3 45 50 61 4 Regions Visited 4 Branch Regions 3 Pre-discovered Areas 1 | . . 1 . . Known Exits Taken . | . . . . . Unknown Exits Taken 4 | 1 1 1 1 . Scrap Searched . | . . . . . Spaces Dug 1 | . . 1 . . Terrain Destroyed 1 | . . 1 . . Melee . | . . . . . Projectile 1 | . . 1 . . AOE . | . . . . . Terrain Rammed . | . . . . . Walls Destroyed . | . . . . . Machines Disabled . | . . . . . Actions | -11 -10 -10 -10 -9 --------- Run | Jun Mat Min Exi Min Total 994 | 43 284 391 270 6 Wait 23 | . 9 14 . . Move 835 | 33 216 334 252 . Hop . | . . . . . Pick Up 29 | 2 12 9 6 . Fast Attach 10 | 6 1 2 1 . Attach 6 | . 2 3 1 . Detach 1 | . . . 1 . Swap 12 | 2 2 5 2 1 Drop 13 | . 4 2 7 . Fire 62 | . 38 19 . 5 Melee . | . . . . . Ram . | . . . . . Kick . | . . . . . Crush 1 | . . 1 . . Escape Stasis . | . . . . . Rewire 2 | . . 2 . . Trap . | . . . . . Miscellaneous . | . . . . . Route ------- -11/Junkyard -10/Materials -10/Mines (discovered 3 exits: [*Mat x2] / *Exi) -10/Exiles (discovered 2 exits: [*Min x2]) -9/Mines History --------- Turn | Location | Event 12 | -11/Junkyard | Discovered new exit (range 13) 66 | -11/Junkyard | Entered Materials 315 | -10/Materials | Build established: Mutant 425 | -10/Materials | Discovered new exit (range 15) 551 | -10/Materials | Entered Mines 597 | -10/Mines | Met a Derelict bent on vengeance 622 | -10/Mines | Core integrity fell below 50% 702 | -10/Mines | Assembled infested the area 749 | -10/Mines | Met 8R-AWN 857 | -10/Mines | Discovered new exit (range 5) 884 | -10/Mines | Discovered new exit (range 13) 904 | -10/Mines | Learned location of Storage (-9) 1014 | -10/Mines | Discovered new exit (range 12) 1105 | -10/Mines | Found a hidden stash of uninstalled traps 1260 | -10/Mines | Entered Exiles 1305 | -10/Exiles | Discovered new exit (range 15) 1401 | -10/Exiles | Welcomed by 8R-AWN 1446 | -10/Exiles | Met EX-HEX 1452 | -10/Exiles | Learned about 8R-AWN's background 1545 | -10/Exiles | Met EX-BIN 1590 | -10/Exiles | Aligned with FarCom system 1593 | -10/Exiles | Given EX-Vault access code 1667 | -10/Exiles | Opened EX-Vault 1692 | -10/Exiles | Found Prototype Ballistic Cannon 1761 | -10/Exiles | Warned to stay clear of 0b10 Research branches 1853 | -10/Exiles | Met EX-DEC 2016 | -10/Exiles | Discovered new exit (range 14) 2041 | -10/Exiles | Left Exiles lab with AWS/Autocannon 2041 | -10/Exiles | Entered Mines 2046 | -9/Mines | Core integrity fell below 20% 2057 | -9/Mines | Destroyed by G-34 Mercenary with Small Laser Last Messages --------------- EX-DEC: Ah I see we have a visitor. One wrong move in here and I'll invert your atomic chain! 01855_ EX-DEC: "Oops, I hope HEX didn't hear that..." 01965_ Dropped Sml. Storage Unit. 01966_ Acquired Lrg. Storage Unit. 01967_ Dropped Lgt. Treads. 01970_ Dropped Mining Laser. 01971_ Acquired Lgt. Treads. 01976_ Dropped Lgt. Treads. 01976_ Acquired Mining Laser. 01979_ Dropped Hcp. Storage Unit. 01980_ Acquired Sml. Storage Unit. 01983_ Dropped Sml. Storage Unit. 01983_ Acquired Lrg. Storage Unit. 01986_ Dropped Heat Sink. 01987_ Acquired Lrg. Storage Unit. 02016_ EXIT=FOUND LOCATION=UNKNOWN GOAL=ESCAPE 02041_ Receiving FarCom transmissions... Map ----- +----------------------------------------------------+ | ?????????????????????????????????????????????????? | | ?????????????????????????????????????????????????? | | ?????????????????????????????????????????????????? | | ?????????????????????????????????????????????????? | | ?????????????????????????????????????????????????? | | ?????????????????????????????????????????????????? | | ?????????????????????????????????????????????????? | | ?????????????????????????????????????????????????? | | ?????????????????????????????????????????????????? | | ?????????????????????????????????????????????????? | | ?????????????????????????????????????????????????? | | ?????????????????????????????????????????????????? | | ?????????????????????????????????????????????????? | | ?????????????????????????????????????????????????? | | ???????????????????????###???????????????????????? | | ???????????????????????# #??????????????????????? | | ??????????????? ??????? ??????????????????????? | | ??????????????????????? ??????????????????????? | | ???????????????????????# #??????????????????????? | | ???????????????????????# #??????????????????????? | | ???????????????????????# ???????????#??????????? | | ???????????????????????# ??????????????????????? | | ???????????????????????# #??????????????????????? | | ??????????????????????## ##?????????????????????? | | ?????????????????????## g###???????????????????? | | ?????????????????????# @g #???????????????????? | | ????????????????# g #??????????????????? | | ????????????????###### #??????????????????? | | ??????????????#??????## #??????????????????? | | ??????????????????????#### ##??????????????????? | | ??????????????????????????####???????????????????? | | ?????????????????????????????????#???????????????? | | ?????????????????????????????????????????????????? | | ?????????????????????????????#???????????????????? | | | | | | | | | | | | | | | | | | | | | | | | | | | | | | | | | +----------------------------------------------------+ Best States ------------- Heat Dissipation 25 Energy Generation 10 Energy Capacity 250 Matter Stores 300 Matter Capacity 450 Sight Range 16 Terrain Scan Range 14 Terrain Scan Density 10 Propulsion Shielding 33 Evasion (%) 40 Recoil Reduction 2 Item Schematics ----------------- None Robot Schematics ------------------ None Fabricated ------------ Nothing Alien Tech Used ----------------- None Achievements -------------- None Challenges ------------ None Game ------ Seed RagnarokShadingPrototype Manual? 0 Play Time 00:24:13 Cumulative 35.3 hours Start 2024.01.28 @ 13:49:37 End 2024.01.28 @ 14:16:11 Sessions 1 Manual Loads 0 Difficulty Rogue Special Mode None Game No. 36 Rogue 36 Adventurer 0 Explorer 0 Win Type - Total 1 Types 1/0/0/0/0/0/0/0/0 Lore% 28 Gallery% 28 Achievement% 26 Wizard Run 0 Options --------- ASCII 0 Keyboard 0 Movement Mouse Keybinds 0 Fullscreen 2 Font 18/SmallcapsGlow Map View 76x50 Tactical HUD 1 Map Filters NONE Filters NONE Steam 1 RUN: 4148d4fb-0b0d-432c-a8af-f3f9da2936d0